fUSD/lending_fUSD_20260401
["ID","MTS","AMOUNT","RATE_DAILY","PERIOD"]
[419185203,1775010668045,-649.377886,0.000249,2]
[419185204,1775010668056,-454.900784,0.000249,2]
[419185205,1775010668066,-563.06762,0.000249,2]
[419185206,1775010668076,-151.0,0.000249,2]
[419185207,1775010668085,-649.377886,0.000249,2]
[419185208,1775010668095,-151.0,0.000249,2]
[419185209,1775010668107,-454.900784,0.000249,2]
[419185210,1775010668118,-281.27557,0.000249,2]
[419185211,1775010668128,-151.0,0.000249,2]
[419185212,1775010668137,-373.639694,0.000249,2]
[419185213,1775010668147,-454.900784,0.000249,2]
[419185214,1775010668158,-373.639694,0.000249,2]
[419185215,1775010668167,-151.0,0.000249,2]
[419185216,1775010668177,-151.0,0.000249,2]
[419185217,1775010668186,-373.639694,0.000249,2]
[419185218,1775010668196,-1608.986935,0.000249,2]
[419185219,1775010668206,-374.687718,0.000249,2]
[419185220,1775010668215,-151.0,0.000249,2]
[419185221,1775010668225,-892.253268,0.000249,2]
[419185222,1775010668234,-373.639694,0.000249,2]
[419185223,1775010668243,-374.687718,0.000249,2]
[419185224,1775010668253,-254.274164,0.000249,2]
[419185225,1775010668262,-892.253268,0.000249,2]
[419185226,1775010668271,-151.0,0.000249,2]
[419185227,1775010668281,-374.687718,0.000249,2]
[419185228,1775010668291,-3433.898481,0.000249,2]
[419185229,1775010668301,-892.253268,0.000249,2]
[419185230,1775010668310,-1608.986935,0.000249,2]
[419185231,1775010668322,-225.517648,0.000249,2]
[419185232,1775010668331,-1777.572748,0.000249,2]
[419185233,1775010668340,-3433.898481,0.000249,2]
[419185234,1775010668350,-374.687718,0.000249,2]
[419185235,1775010668359,-1032.993865,0.000249,2]
[419185236,1775010668369,-892.253268,0.000249,2]
[419185237,1775010668378,-1608.986935,0.000249,2]
[419185238,1775010668388,-1777.572748,0.000249,2]
[419185239,1775010668398,-3433.898481,0.000249,2]
[419185240,1775010668408,-1032.993865,0.000249,2]
[419185241,1775010668417,-1608.986935,0.000249,2]
[419185242,1775010668427,-810.172394,0.000249,2]
[419185243,1775010668436,-1777.572748,0.000249,2]
[419185244,1775010668446,-3433.898481,0.000249,2]
[419185245,1775010668455,-151.0,0.000249,2]
[419185246,1775010668465,-1032.993865,0.000249,2]
[419185247,1775010668474,-810.172394,0.000249,2]
[419185248,1775010668483,-1777.572748,0.000249,2]
[419185249,1775010668493,-1032.993865,0.000249,2]
[419185250,1775010668502,-810.172394,0.000249,2]
[419185251,1775010668512,-201.971464,0.000249,2]
[419185252,1775010668521,-810.172394,0.000249,2]
[419185253,1775010668531,-151.0,0.000249,2]
[419185254,1775010668540,-151.0,0.000249,2]
[419185255,1775010668549,-201.971464,0.000249,2]
[419185256,1775010668559,-151.0,0.000249,2]
[419185257,1775010668568,-151.0,0.000249,2]
[419185258,1775010668577,-151.0,0.000249,2]
[419185259,1775010668587,-201.971464,0.000249,2]
[419185260,1775010668596,-151.0,0.000249,2]
[419185261,1775010668605,-151.0,0.000249,2]
[419185262,1775010668615,-404.966357,0.000249,2]
[419185263,1775010668624,-201.971464,0.000249,2]
[419185264,1775010668634,-197.488765,0.000249,2]
[419185265,1775010668644,-353.860164,0.000249,2]
[419185266,1775010668654,-404.966357,0.000249,2]
[419185267,1775010668663,-353.860164,0.000249,2]
[419185268,1775010668673,-299.440004,0.000249,2]
[419185269,1775010668682,-404.966357,0.000249,2]
[419185270,1775010668691,-353.860164,0.000249,2]
[419185271,1775010668701,-404.966357,0.000249,2]
[419185272,1775010668710,-299.440004,0.000249,2]
[419185273,1775010668720,-353.860164,0.000249,2]
[419185274,1775010668730,-503.175512,0.000249,2]
[419185275,1775010668739,-1288.5338,0.000249,2]
[419185276,1775010668750,-503.175512,0.000249,2]
[419185277,1775010668760,-1288.5338,0.000249,2]
[419185278,1775010668769,-503.175512,0.000249,2]
[419185279,1775010668779,-1288.5338,0.000249,2]
[419185280,1775010668789,-299.440004,0.000249,2]
[419185281,1775010668798,-503.175512,0.000249,2]
[419185282,1775010668808,-299.440004,0.000249,2]
[419185283,1775010668817,-188.8771,0.000249,2]
[419185284,1775010668827,-188.8771,0.000249,2]
[419185285,1775010668837,-1590.948008,0.000249,2]
[419185286,1775010668846,-755.641847,0.000249,2]
[419185287,1775010668855,-1288.5338,0.000249,2]
[419185288,1775010668864,-219.010236,0.000249,2]
[419185289,1775010668874,-1590.948008,0.000249,2]
[419185290,1775010668883,-755.641847,0.000249,2]
[419185291,1775010668893,-219.010236,0.000249,2]
[419185292,1775010668902,-1590.948008,0.000249,2]
[419185293,1775010668912,-188.8771,0.000249,2]
[419185294,1775010668924,-755.641847,0.000249,2]
[419185295,1775010668934,-598.774171,0.000249,2]
[419185296,1775010668944,-1566.277104,0.000249,2]
[419185297,1775010668955,-219.010236,0.000249,2]
[419185298,1775010668966,-188.8771,0.000249,2]
[419185299,1775010668976,-2959.597666,0.000249,2]
[419185300,1775010668988,-1590.948008,0.000249,2]
[419185301,1775010668999,-763.385097,0.000249,2]
[419185302,1775010669010,-755.641847,0.000249,2]
[419185303,1775010669019,-1566.277104,0.000249,2]
[419185304,1775010669029,-598.774171,0.000249,2]
[419185305,1775010669039,-239.117919,0.000249,2]
[419185306,1775010669059,-219.010236,0.000249,2]
[419185307,1775010669070,-2959.597666,0.000249,2]
[419185308,1775010669080,-2633.694908,0.000249,2]
[419185309,1775010669089,-763.385097,0.000249,2]
[419185310,1775010669099,-1566.277104,0.000249,2]
[419185311,1775010669109,-598.774171,0.000249,2]
[419185312,1775010669119,-151.0,0.000249,2]
[419185313,1775010669128,-239.117919,0.000249,2]
[419185314,1775010669138,-2959.597666,0.000249,2]
[419185315,1775010669147,-151.0,0.000249,2]
[419185316,1775010669157,-2633.694908,0.000249,2]
[419185317,1775010669167,-500.0,0.000249,2]
[419185318,1775010669177,-763.385097,0.000249,2]
[419185319,1775010669187,-1566.277104,0.000249,2]
[419185320,1775010669196,-598.774171,0.000249,2]
[419185321,1775010669206,-151.0,0.000249,2]
[419185322,1775010669216,-239.117919,0.000249,2]
[419185323,1775010669225,-7544.676354,0.000249,2]
[419185324,1775010669235,-2959.597666,0.000249,2]
[419185325,1775010669245,-1131.308331,0.000249,2]
[419185326,1775010669255,-2633.694908,0.000249,2]
[419185327,1775010669265,-182.033532,0.000249,2]
[419185328,1775010669275,-500.0,0.000249,2]
[419185329,1775010669284,-763.385097,0.000249,2]
[419185330,1775010669294,-151.0,0.000249,2]
[419185331,1775010669304,-239.117919,0.000249,2]
[419185332,1775010669313,-7544.676354,0.000249,2]
[419185333,1775010669323,-1131.308331,0.000249,2]
[419185334,1775010669332,-2633.694908,0.000249,2]
[419185335,1775010669342,-500.0,0.000249,2]
[419185336,1775010669351,-7544.676354,0.000249,2]
[419185337,1775010669361,-1131.308331,0.000249,2]
[419185338,1775010669370,-500.0,0.000249,2]
[419185339,1775010669380,-151.0,0.000249,2]
[419185340,1775010669389,-1131.308331,0.000249,2]
[419185341,1775010669399,-7544.676354,0.000249,2]
[419185342,1775010669408,-151.0,0.000249,2]
[419185343,1775010669419,-151.0,0.000249,2]
[419185344,1775010669428,-151.0,0.000249,2]
[419185345,1775010669438,-1936.333589,0.000249,2]
[419185346,1775010669448,-151.0,0.000249,2]
[419185347,1775010669458,-151.0,0.000249,2]
[419185348,1775010669468,-1936.333589,0.000249,2]
[419185349,1775010669478,-151.0,0.000249,2]
[419185350,1775010669488,-158.834838,0.000249,2]
[419185351,1775010669498,-151.0,0.000249,2]
[419185352,1775010669508,-1936.333589,0.000249,2]
[419185353,1775010669518,-158.834838,0.000249,2]
[419185354,1775010669528,-421.876276,0.000249,2]
[419185355,1775010669538,-1936.333589,0.000249,2]
[419185356,1775010669547,-158.834838,0.000249,2]
[419185357,1775010669557,-421.876276,0.000249,2]
[419185358,1775010669566,-158.834838,0.000249,2]
[419185359,1775010669576,-421.876276,0.000249,2]
[419185360,1775010669585,-421.876276,0.000249,2]
[419185361,1775010669595,-202.256457,0.000249,2]
[419185362,1775010669604,-202.256457,0.000249,2]
[419185363,1775010669614,-329.527585,0.000249,2]
[419185364,1775010669624,-329.527585,0.000249,2]
[419185365,1775010669634,-202.256457,0.000249,2]
[419185366,1775010669643,-329.527585,0.000249,2]
[419185367,1775010669652,-202.256457,0.000249,2]
[419185368,1775010669662,-329.527585,0.000249,2]
[419185369,1775010669672,-750.445627,0.000249,2]
[419185370,1775010669682,-170.656032,0.000249,2]
[419185371,1775010669691,-151.0,0.000249,2]
[419185372,1775010669701,-750.445627,0.000249,2]
[419185373,1775010669711,-170.656032,0.000249,2]
[419185374,1775010669721,-151.0,0.000249,2]
[419185375,1775010669730,-151.0,0.000249,2]
[419185376,1775010669740,-4126.945995,0.000249,2]
[419185377,1775010669751,-750.445627,0.000249,2]
[419185378,1775010669761,-170.656032,0.000249,2]
[419185379,1775010669771,-4126.945995,0.000249,2]
[419185380,1775010669780,-750.445627,0.000249,2]
[419185381,1775010669790,-170.656032,0.000249,2]
[419185382,1775010669799,-4126.945995,0.000249,2]
[419185383,1775010669809,-151.0,0.000249,2]
[419185384,1775010669818,-151.0,0.000249,2]
[419185385,1775010669829,-4126.945995,0.000249,2]
[419185386,1775010669839,-151.0,0.000249,2]
[419185387,1775010669848,-151.0,0.000249,2]
[419185388,1775010669859,-262.000422,0.000249,2]
[419185389,1775010669868,-151.0,0.000249,2]
[419185390,1775010669878,-302.093611,0.000249,2]
[419185391,1775010669888,-1002.143556,0.000249,2]
[419185392,1775010669898,-262.000422,0.000249,2]
[419185393,1775010669908,-839.001389,0.000249,2]
[419185394,1775010669917,-151.0,0.000249,2]
[419185395,1775010669928,-302.093611,0.000249,2]
[419185396,1775010669939,-151.0,0.000249,2]
[419185397,1775010669948,-151.0,0.000249,2]
[419185398,1775010669959,-151.0,0.000249,2]
[419185399,1775010669969,-262.000422,0.000249,2]
[419185400,1775010669980,-1002.143556,0.000249,2]
[419185401,1775010669990,-839.001389,0.000249,2]
[419185402,1775010670001,-151.0,0.000249,2]
[419185403,1775010670010,-302.093611,0.000249,2]
[419185404,1775010670020,-1002.143556,0.000249,2]
[419185405,1775010670031,-175.599481,0.000249,2]
[419185406,1775010670041,-262.000422,0.000249,2]
[419185407,1775010670053,-839.001389,0.000249,2]
[419185408,1775010670063,-302.093611,0.000249,2]
[419185409,1775010670073,-1002.143556,0.000249,2]
[419185410,1775010670083,-175.599481,0.000249,2]
[419185411,1775010670092,-273.873245,0.000249,2]
[419185412,1775010670102,-237.755723,0.000249,2]
[419185413,1775010670112,-839.001389,0.000249,2]
[419185414,1775010670122,-485.818484,0.000249,2]
[419185415,1775010670132,-175.599481,0.000249,2]
[419185416,1775010670142,-2296.649879,0.000249,2]
[419185417,1775010670152,-175.691598,0.000249,2]
[419185418,1775010670163,-273.873245,0.000249,2]
[419185419,1775010670173,-237.755723,0.000249,2]
[419185420,1775010670183,-485.818484,0.000249,2]
[419185421,1775010670194,-1163.182786,0.000249,2]
[419185422,1775010670204,-170.636045,0.000249,2]
[419185423,1775010670214,-175.599481,0.000249,2]
[419185424,1775010670225,-2296.649879,0.000249,2]
[419185425,1775010670235,-175.691598,0.000249,2]
[419185426,1775010670246,-273.873245,0.000249,2]
[419185427,1775010670255,-151.0,0.000249,2]
[419185428,1775010670270,-237.755723,0.000249,2]
[419185429,1775010670282,-485.818484,0.000249,2]
[419185430,1775010670295,-1163.182786,0.000249,2]
[419185431,1775010671603,-170.636045,0.000249,2]
[419185432,1775010671625,-2296.649879,0.000249,2]
[419185433,1775010671637,-196.147739,0.000249,2]
[419185434,1775010671647,-273.873245,0.000249,2]
[419185435,1775010671657,-175.691598,0.000249,2]
[419185436,1775010671667,-151.0,0.000249,2]
[419185437,1775010671676,-237.755723,0.000249,2]
[419185438,1775010671685,-485.818484,0.000249,2]
[419185439,1775010671695,-1163.182786,0.000249,2]
[419185440,1775010671704,-170.636045,0.000249,2]
[419185441,1775010671714,-2296.649879,0.000249,2]
[419185442,1775010671725,-196.147739,0.000249,2]
[419185443,1775010671735,-175.691598,0.000249,2]
[419185444,1775010671745,-170.284057,0.000249,2]
[419185445,1775010671754,-1163.182786,0.000249,2]
[419185446,1775010671763,-170.636045,0.000249,2]
[419185447,1775010671773,-151.0,0.000249,2]
[419185448,1775010671783,-314.772131,0.000249,2]
[419185449,1775010671792,-196.147739,0.000249,2]
[419185450,1775010671801,-151.0,0.000249,2]
[419185451,1775010671810,-314.772131,0.000249,2]
[419185452,1775010671819,-196.147739,0.000249,2]
[419185453,1775010671829,-206.472759,0.000249,2]
[419185454,1775010671839,-560.669219,0.000249,2]
[419185455,1775010671849,-151.0,0.000249,2]
[419185456,1775010671859,-557.258778,0.000249,2]
[419185457,1775010671869,-314.772131,0.000249,2]
[419185458,1775010671879,-206.472759,0.000249,2]
[419185459,1775010671888,-560.669219,0.000249,2]
[419185460,1775010671898,-3080.917359,0.000249,2]
[419185461,1775010671908,-557.258778,0.000249,2]
[419185462,1775010671920,-314.772131,0.000249,2]
[419185463,1775010671930,-206.472759,0.000249,2]
[419185464,1775010671940,-993.841162,0.000249,2]
[419185465,1775010671950,-560.669219,0.000249,2]
[419185466,1775010671959,-3080.917359,0.000249,2]
[419185467,1775010671970,-178.645392,0.000249,2]
[419185468,1775010671980,-557.258778,0.000249,2]
[419185469,1775010671990,-206.472759,0.000249,2]
[419185470,1775010672000,-993.841162,0.000249,2]
[419185471,1775010672010,-560.669219,0.000249,2]
[419185472,1775010672022,-178.645392,0.000249,2]
[419185473,1775010672032,-3080.917359,0.000249,2]
[419185474,1775010672042,-557.258778,0.000249,2]
[419185475,1775010672051,-993.841162,0.000249,2]
[419185476,1775010672061,-3080.917359,0.000249,2]
[419185477,1775010672071,-178.645392,0.000249,2]
[419185478,1775010672080,-993.841162,0.000249,2]
[419185479,1775010672089,-178.645392,0.000249,2]
[419185480,1775010672099,-151.0,0.000249,2]
[419185481,1775010672109,-151.0,0.000249,2]
[419185482,1775010672119,-151.0,0.000249,2]
[419185483,1775010672130,-151.0,0.000249,2]
[419185484,1775010672140,-151.0,0.000249,2]
[419185485,1775010672151,-151.0,0.000249,2]
[419185486,1775010672162,-2349.593397,0.000249,2]
[419185487,1775010672172,-2349.593397,0.000249,2]
[419185488,1775010672181,-2349.593397,0.000249,2]
[419185489,1775010672192,-873.524236,0.000249,2]
[419185490,1775010672201,-2349.593397,0.000249,2]
[419185491,1775010672210,-873.524236,0.000249,2]
[419185492,1775010672219,-873.524236,0.000249,2]
[419185493,1775010672229,-268.345093,0.000249,2]
[419185494,1775010672238,-873.524236,0.000249,2]
[419185495,1775010672248,-268.345093,0.000249,2]
[419185496,1775010672258,-268.345093,0.000249,2]
[419185497,1775010672267,-268.345093,0.000249,2]
[419185498,1775010672277,-1346.0,0.0002496,2]
[419185499,1775010672286,-1283.0,0.00025,2]
[419185500,1775010672295,-599.0,0.00025,2]
[419185501,1775010672305,-550.0,0.00025,2]
[419185502,1775010672314,-500.0,0.00025,2]
[419185503,1775010672324,-160.0,0.00025,7]
[419185504,1775010672333,-1133.0,0.00025,2]
[419185505,1775010672343,-1101.0,0.00025,2]
[419185506,1775010672352,-5328.0,0.00025,2]
[419185507,1775010672362,-1263.0,0.00025138,2]
[419185508,1775010672371,-1216.0,0.00025138,2]
[419185509,1775010672380,-925.0,0.00025138,2]
[419185510,1775010672390,-621.0,0.00025138,2]
[419185511,1775010672400,-3519.0,0.00025138,2]
[419185512,1775010672410,-805.6,0.00025472,2]
[419185513,1775010672422,-999.15405883,0.0002572,2]
[419185514,1775010672432,-150.0,0.0002589,2]
[419185515,1775010672442,-2378.0494,0.000259,57]
[419185516,1775010672452,-504.0,0.00025974,13]
[419185517,1775010672461,-1283.0,0.00026,2]
[419185518,1775010672471,-599.0,0.00026,2]
[419185519,1775010672481,-500.0,0.00026,2]
[419185520,1775010672491,-1133.0,0.00026,2]
[419185521,1775010672500,-1101.0,0.00026,2]
[419185522,1775010672509,-5328.0,0.00026,2]
[419185523,1775010672519,-509.656853,0.00026099,120]
[419185524,1775010672529,-193.43,0.00026139,30]
[419185525,1775010672539,-168.29,0.00026496,2]
[419185526,1775010672548,-250.0,0.0002681,8]
[419185527,1775010672558,-805.6,0.00026978,2]
[419185528,1775010672568,-800.0,0.00026986,120]
[419185529,1775010672577,-1292.62658029,0.00027,2]
[419185530,1775010672587,-615.2014381,0.00027,2]
[419185531,1775010672598,-600.0,0.00027,2]
[419185532,1775010672607,-519.08733496,0.00027,2]
[419185533,1775010672617,-1134.37979984,0.00027,2]
[419185534,1775010672627,-1111.32774423,0.00027,2]
[419185535,1775010672636,-5342.67305915,0.00027,2]
[419185536,1775010672646,-152.0,0.00027025,3]
[419185537,1775010672656,-150.0,0.00027185,2]
[419185538,1775010672666,-3057.198,0.000272,62]
[419185539,1775010672676,-767.0,0.0002723,5]
[419185540,1775010672687,-504.0,0.00027261,14]
[419185541,1775010672696,-285.40491141,0.000273,30]
[419185542,1775010672705,-151.0,0.00027394,7]
[419185543,1775010672715,-173.32,0.00027397,2]
[419185544,1775010672725,-300.0,0.00027397,2]
[419185545,1775010672735,-1000.0,0.00027397,20]
[419185546,1775010672745,-330.45036883,0.00027397,2]
[419185547,1775010672755,-151.0,0.00027397,2]
[419185548,1775010672765,-151.0,0.00027397,2]
[419185549,1775010672775,-432.594449,0.00027397,2]
[419185550,1775010672784,-432.594449,0.00027397,2]
[419185551,1775010672793,-432.594449,0.00027397,2]
[419185552,1775010672803,-432.594449,0.00027397,2]
[419185553,1775010672812,-432.594449,0.00027397,2]
[419185554,1775010672822,-432.594449,0.00027397,2]
[419185555,1775010672831,-432.594449,0.00027397,2]
[419185556,1775010672841,-432.594449,0.00027397,2]
[419185557,1775010672851,-2968.75711,0.00027397,2]
[419185558,1775010672860,-2968.75711,0.00027397,2]
[419185559,1775010672870,-2968.75711,0.00027397,2]
[419185560,1775010672880,-2968.75711,0.00027397,2]
[419185561,1775010672889,-2968.75711,0.00027397,2]
[419185562,1775010672899,-2968.75711,0.00027397,2]
[419185563,1775010672908,-741.356026,0.00027397,2]
[419185564,1775010672917,-2968.75711,0.00027397,2]
[419185565,1775010672927,-2968.75711,0.00027397,2]
[419185566,1775010672937,-741.356026,0.00027397,2]
[419185567,1775010672947,-2968.75711,0.00027397,2]
[419185568,1775010672957,-741.356026,0.00027397,2]
[419185569,1775010672966,-2968.75711,0.00027397,2]
[419185570,1775010672975,-741.356026,0.00027397,2]
[419185571,1775010672986,-2968.75711,0.00027397,2]
[419185572,1775010672996,-741.356026,0.00027397,2]
[419185573,1775010673006,-2968.75711,0.00027397,2]
[419185574,1775010673015,-741.356026,0.00027397,2]
[419185575,1775010673025,-741.356026,0.00027397,2]
[419185576,1775010673035,-741.356026,0.00027397,2]
[419185577,1775010673045,-741.356026,0.00027397,2]
[419185578,1775010673055,-741.356026,0.00027397,2]
[419185579,1775010673066,-741.356026,0.00027397,2]
[419185580,1775010673076,-741.356026,0.00027397,2]
[419185581,1775010673086,-9459.47,0.00027397,10]
[419185582,1775010673096,-152.0,0.00027841,3]
[419185583,1775010673107,-1346.0,0.0002796,2]
[419185584,1775010673117,-2000.0,0.000281,2]
[419185585,1775010673127,-217.45897858,0.00028118,120]
[419185586,1775010673137,-500.0,0.00028137,2]
[419185587,1775010673148,-500.0,0.00028137,120]
[419185588,1775010673159,-500.0,0.00028137,120]
[419185589,1775010673169,-500.0,0.00028137,120]
[419185590,1775010673179,-500.0,0.00028137,120]
[419185591,1775010673189,-500.0,0.00028137,30]
[419185592,1775010673199,-500.0,0.00028137,120]
[419185593,1775010673209,-1263.0,0.00028138,2]
[419185594,1775010673220,-1216.0,0.00028138,2]
[419185595,1775010673231,-925.0,0.00028138,2]
[419185596,1775010673241,-621.0,0.00028138,2]
[419185597,1775010673252,-3519.0,0.00028138,2]
[419185598,1775010673262,-152.0,0.00028168,4]
[419185599,1775010673273,-250.0,0.00028293,2]
[419185600,1775010673283,-250.0,0.00028293,2]
[419185601,1775010673293,-235.0,0.00028293,2]
[419185602,1775010673303,-805.6,0.00028483,2]
[419185603,1775010673314,-150.0,0.00028544,2]
[419185604,1775010673324,-504.0,0.00028547,15]
[419185605,1775010673334,-3930.3051,0.000286,67]
[419185606,1775010673344,-500.0,0.00028767,120]
[419185607,1775010673354,-500.0,0.00028767,120]
[419185608,1775010673365,-500.0,0.00028767,120]
[419185609,1775010673376,-500.0,0.00028767,120]
[419185610,1775010673386,-500.0,0.00028767,120]
[419185611,1775010673396,-500.0,0.00028767,120]
[419185612,1775010673406,-204.78266092,0.00028767,120]
[419185613,1775010673417,-150.0,0.00028767,2]
[419185614,1775010673426,-165.0,0.00028767,2]
[419185615,1775010673436,-168.0,0.00028853,2]
[419185616,1775010673446,-199.0,0.00028997,7]
[419185617,1775010673456,-168.0,0.00029002,2]
[419185618,1775010673466,-1444.0,0.00029041,120]
[419185619,1775010673476,-168.0,0.00029058,2]
[419185620,1775010673487,-168.0,0.00029059,2]
[419185621,1775010673496,-168.0,0.00029062,2]
[419185622,1775010673506,-199.0,0.00029076,2]
[419185623,1775010673516,-168.0,0.00029079,2]
[419185624,1775010673526,-599.0,0.0002909,2]
[419185625,1775010673536,-168.0,0.00029132,2]
[419185626,1775010673545,-199.0,0.00029189,2]
[419185627,1775010673556,-151.0,0.00029276,7]
[419185628,1775010673566,-151.0,0.00029276,7]
[419185629,1775010673575,-151.0,0.00029276,7]
[419185630,1775010673585,-151.0,0.00029276,7]
[419185631,1775010673595,-199.198546,0.00029276,7]
[419185632,1775010673605,-151.0,0.00029276,7]
[419185633,1775010673615,-167.533581,0.00029276,7]
[419185634,1775010673625,-167.533581,0.00029276,7]
[419185635,1775010673634,-167.533581,0.00029276,7]
[419185636,1775010673644,-296.139157,0.00029276,7]
[419185637,1775010673654,-167.533581,0.00029276,7]
[419185638,1775010673664,-151.0,0.00029276,7]
[419185639,1775010673674,-296.139157,0.00029276,7]
[419185640,1775010673683,-296.139157,0.00029276,7]
[419185641,1775010673692,-296.139157,0.00029276,7]
[419185642,1775010673702,-151.0,0.00029276,7]
[419185643,1775010673712,-183.727139,0.00029276,7]
[419185644,1775010673721,-151.0,0.00029276,7]
[419185645,1775010673730,-151.0,0.00029276,7]
[419185646,1775010673740,-151.0,0.00029276,7]
[419185647,1775010673751,-171.108772,0.00029276,7]
[419185648,1775010673762,-171.108772,0.00029276,7]
[419185649,1775010673772,-171.108772,0.00029276,7]
[419185650,1775010673782,-171.108772,0.00029276,7]
[419185651,1775010673792,-999.15405883,0.0002931,2]
[419185652,1775010673802,-152.0,0.00029311,5]
[419185653,1775010673813,-168.0,0.00029348,2]
[419185654,1775010673822,-250.0,0.0002939,13]
[419185655,1775010673832,-168.0,0.00029419,2]
[419185656,1775010673841,-5800.0,0.00029429,2]
[419185657,1775010673851,-5800.0,0.00029437,2]
[419185658,1775010673861,-5800.0,0.00029446,2]
[419185659,1775010673871,-5800.0,0.00029454,2]
[419185660,1775010673880,-199.0,0.00029772,2]
[419185661,1775010673890,-152.0,0.00029801,4]
[419185662,1775010673900,-504.0,0.00029833,16]
[419185663,1775010673911,-1500.0,0.0002985,2]
[419185664,1775010673921,-1500.0,0.0002985,2]
[419185665,1775010673931,-1364.0,0.0002985,2]
[419185666,1775010673941,-5052.7633,0.000299,72]
[419185667,1775010673951,-150.0,0.00029971,2]
[419185668,1775010673961,-805.6,0.00029989,2]
[419185669,1775010674057,-216.349999,0.0003,11]
[419185670,1775010674067,-1134.56811026,0.0003,120]
[419185671,1775010674077,-200.0,0.0003,11]
[419185672,1775010674087,-1014.36,0.0003,30]
[419185673,1775010674098,-1500.0,0.0003,2]
[419185674,1775010674108,-1500.0,0.0003,2]
[419185675,1775010674119,-1361.0,0.0003,2]
[419185676,1775010674129,-173.32,0.00030137,2]
[419185677,1775010674139,-164.36,0.00030137,2]
[419185678,1775010674148,-228.360261,0.00030137,7]
[419185679,1775010674158,-228.360261,0.00030137,7]
[419185680,1775010674168,-228.360261,0.00030137,7]
[419185681,1775010674178,-228.360261,0.00030137,7]
[419185682,1775010674187,-228.360261,0.00030137,7]
[419185683,1775010674196,-228.360261,0.00030137,7]
[419185684,1775010674206,-228.360261,0.00030137,7]
[419185685,1775010674215,-228.360261,0.00030137,7]
[419185686,1775010674225,-168.0,0.00030174,2]
[419185687,1775010674234,-199.0,0.0003021,2]
[419185688,1775010674243,-168.0,0.00030211,2]
[419185689,1775010674255,-193.43,0.00030278,60]
[419185690,1775010674266,-1014.36,0.00030288,30]
[419185691,1775010674275,-542.14,0.00030411,120]
[419185692,1775010674285,-599.0,0.00030434,2]
[419185693,1775010674294,-152.0,0.00030454,6]
[419185694,1775010674305,-599.0,0.00030501,7]
[419185695,1775010674316,-222.92,0.00030537,30]
[419185696,1775010674327,-1014.36,0.00030577,30]
[419185697,1775010674336,-199.0,0.00030634,2]
[419185698,1775010674347,-1000.0,0.00030652,2]
[419185699,1775010674357,-250.0,0.0003066,2]
[419185700,1775010674366,-250.0,0.0003066,2]
[419185701,1775010674376,-225.0,0.0003066,2]
[419185702,1775010674386,-1000.0,0.0003067,2]